fUST/lending_fUST_20250902
["ID","MTS","AMOUNT","RATE_DAILY","PERIOD"]
[382940447,1756776641680,-481.32029746,0.00013698,2]
[382940448,1756776641692,-481.82742496,0.00013698,2]
[382940449,1756776641703,-480.0,0.00013698,2]
[382940450,1756776641714,-171.49,0.00013698,2]
[382940451,1756776641724,-480.0,0.00013698,2]
[382940452,1756776641735,-480.0,0.00013698,2]
[382940453,1756776641745,-406.62,0.00013698,2]
[382940454,1756776641756,-480.0,0.00013698,2]
[382940455,1756776641767,-480.0,0.00013698,2]
[382940456,1756776641778,-534.51,0.00013698,2]
[382940457,1756776641788,-480.0,0.00013698,2]
[382940458,1756776641799,-499.22,0.00013698,2]
[382940459,1756776641810,-480.0,0.00013698,2]
[382940460,1756776641821,-480.0,0.00013698,2]
[382940461,1756776641831,-508.64,0.00013698,2]
[382940462,1756776641840,-480.0,0.00013698,2]
[382940463,1756776641849,-581.11,0.00013698,2]
[382940464,1756776641860,-706.21,0.00013698,2]
[382940465,1756776641869,-480.0,0.00013698,2]
[382940466,1756776641880,-575.27,0.00013698,2]
[382940467,1756776641889,-480.0,0.00013698,2]
[382940468,1756776641898,-480.0,0.00013698,2]
[382940469,1756776641906,-500.82,0.00013698,2]
[382940470,1756776641914,-480.0,0.00013698,2]
[382940471,1756776641925,-480.0,0.00013698,2]
[382940472,1756776641935,-441.08,0.00013698,2]
[382940473,1756776641954,-480.0,0.00013698,2]
[382940474,1756776641967,-160.57,0.00013698,2]
[382940475,1756776641978,-352.28,0.00013698,2]
[382940476,1756776641989,-480.0,0.00013698,2]
[382940477,1756776642000,-480.0,0.00013698,2]
[382940478,1756776642011,-480.0,0.00013698,2]
[382940479,1756776642021,-480.0,0.00013698,2]
[382940480,1756776642031,-480.0,0.00013698,2]
[382940481,1756776642042,-620.13,0.00013698,2]
[382940482,1756776642052,-480.0,0.00013698,2]
[382940483,1756776642063,-480.0,0.00013698,2]
[382940484,1756776642073,-480.0,0.00013698,2]
[382940485,1756776642092,-480.0,0.00013698,2]
[382940486,1756776642102,-480.0,0.00013698,2]
[382940487,1756776642112,-480.0,0.00013698,2]
[382940488,1756776642125,-480.0,0.00013698,2]
[382940489,1756776642135,-480.0,0.00013698,2]
[382940490,1756776642146,-480.0,0.00013698,2]
[382940491,1756776642156,-480.0,0.00013698,2]
[382940492,1756776642167,-1000.0,0.00013698,2]
[382940493,1756776642179,-480.0,0.00013698,2]
[382940494,1756776642189,-480.0,0.00013698,2]
[382940495,1756776642200,-480.0,0.00013698,2]
[382940496,1756776642210,-480.0,0.00013698,2]
[382940497,1756776642221,-480.0,0.00013698,2]
[382940498,1756776642230,-480.0,0.00013698,2]
[382940499,1756776642242,-480.0,0.00013698,2]
[382940500,1756776642253,-480.0,0.00013698,2]
[382940501,1756776642264,-480.0,0.00013698,2]
[382940502,1756776642276,-480.0,0.00013698,2]
[382940503,1756776642286,-480.0,0.00013698,2]
[382940504,1756776642297,-480.0,0.00013698,2]
[382940505,1756776642308,-480.0,0.00013698,2]
[382940506,1756776642318,-480.0,0.00013698,2]
[382940507,1756776642329,-480.0,0.00013698,2]
[382940508,1756776642341,-480.0,0.00013698,2]
[382940509,1756776642354,-480.0,0.00013698,2]
[382940510,1756776642364,-480.0,0.00013698,2]
[382940511,1756776642376,-480.0,0.00013698,2]
[382940512,1756776642386,-480.0,0.00013698,2]
[382940513,1756776642397,-480.0,0.00013698,2]
[382940514,1756776642408,-480.0,0.00013698,2]
[382940515,1756776642419,-480.0,0.00013698,2]
[382940516,1756776642430,-480.0,0.00013698,2]
[382940517,1756776642443,-245.02185393,0.00013698,2]
[382940522,1756776642697,-480.0,0.00013698,2]
[382940524,1756776642708,-480.0,0.00013698,2]
[382940527,1756776642719,-480.0,0.00013698,2]
[382940528,1756776642729,-480.0,0.00013698,2]
[382940531,1756776642739,-490.04034868,0.00013698,2]
[382940533,1756776642749,-480.0,0.00013698,2]
[382940535,1756776642760,-480.0,0.00013698,2]
[382940537,1756776642770,-332.1196412,0.00013698,2]
[382940539,1756776642779,-481.71509124,0.00013698,2]
[382940541,1756776642789,-480.0,0.00013698,2]
[382940543,1756776642799,-480.0,0.00013698,2]
[382940545,1756776642808,-480.0,0.00013698,2]
[382940547,1756776642818,-480.0,0.00013698,2]
[382940549,1756776642828,-480.0,0.00013698,2]
[382940551,1756776642843,-480.0,0.00013698,2]
[382940553,1756776642853,-480.0,0.00013698,2]
[382940555,1756776642864,-480.0,0.00013698,2]
[382940557,1756776642874,-553.2,0.00013698,2]
[382940559,1756776642883,-480.0,0.00013698,2]
[382940560,1756776642893,-480.0,0.00013698,2]
[382940561,1756776642903,-480.0,0.00013698,2]
[382940562,1756776642912,-480.0,0.00013698,2]
[382940563,1756776642922,-480.0,0.00013698,2]
[382940564,1756776642933,-563.2,0.00013698,2]
[382940565,1756776642942,-480.0,0.00013698,2]
[382940566,1756776642952,-480.0,0.00013698,2]
[382940567,1756776642961,-480.0,0.00013698,2]
[382940568,1756776642971,-326.3682361,0.00013698,2]
[382940569,1756776642981,-533.24,0.00013698,2]
[382940570,1756776642990,-480.0,0.00013698,2]
[382940571,1756776642999,-648.23,0.00013698,2]
[382940572,1756776643009,-480.0,0.00013698,2]
[382940573,1756776643019,-480.0,0.00013698,2]
[382940574,1756776643028,-480.0,0.00013698,2]
[382940575,1756776643038,-480.0,0.00013698,2]
[382940576,1756776643047,-480.0,0.00013698,2]
[382940577,1756776643057,-480.0,0.00013698,2]
[382940578,1756776643066,-480.0,0.00013698,2]
[382940579,1756776643076,-480.0,0.00013698,2]
[382940580,1756776643085,-480.0,0.00013698,2]
[382940581,1756776643095,-331.64,0.00013698,2]
[382940582,1756776643105,-480.0,0.00013698,2]
[382940584,1756776643114,-480.0,0.00013698,2]
[382940586,1756776643124,-480.0,0.00013698,2]
[382940588,1756776643134,-480.0,0.00013698,2]
[382940589,1756776643143,-480.0,0.00013698,2]
[382940590,1756776643153,-480.0,0.00013698,2]
[382940591,1756776643163,-480.0,0.00013698,2]
[382940592,1756776643172,-480.0,0.00013698,2]
[382940593,1756776643181,-480.0,0.00013698,2]
[382940594,1756776643191,-480.0,0.00013698,2]
[382940595,1756776643200,-480.0,0.00013698,2]
[382940596,1756776643210,-480.0,0.00013698,2]
[382940597,1756776643220,-551.83,0.00013698,2]
[382940598,1756776643230,-480.0,0.00013698,2]
[382940599,1756776643239,-480.0,0.00013698,2]
[382940600,1756776643250,-480.0,0.00013698,2]
[382940601,1756776643259,-480.0,0.00013698,2]
[382940602,1756776643269,-480.0,0.00013698,2]
[382940603,1756776643279,-480.0,0.00013698,2]
[382940604,1756776643289,-534.53,0.00013698,2]
[382940605,1756776643299,-480.0,0.00013698,2]
[382940606,1756776643309,-480.0,0.00013698,2]
[382940607,1756776643319,-480.0,0.00013698,2]
[382940608,1756776643328,-480.0,0.00013698,2]
[382940609,1756776643338,-500.0,0.00013698,2]
[382940610,1756776643347,-450.48049914,0.00013698,2]
[382940612,1756776643560,-275.02359508,0.000134,2]
[382940613,1756776643570,-49.51950086,0.00013698,2]
[382940614,1756776643581,-480.0,0.00013698,2]
[382940615,1756776643591,-480.0,0.00013698,2]
[382940616,1756776643601,-480.0,0.00013698,2]
[382940617,1756776643611,-480.0,0.00013698,2]
[382940618,1756776643623,-480.0,0.00013698,2]
[382940619,1756776643636,-480.0,0.00013698,2]
[382940620,1756776643648,-480.0,0.00013698,2]
[382940621,1756776643658,-480.0,0.00013698,2]
[382940622,1756776643669,-480.0,0.00013698,2]
[382940623,1756776643679,-480.0,0.00013698,2]
[382940624,1756776643689,-491.91,0.00013698,2]
[382940625,1756776643699,-569.68838481,0.00013698,2]
[382940626,1756776643709,-480.0,0.00013698,2]
[382940627,1756776643720,-480.0,0.00013698,2]
[382940628,1756776643731,-480.0,0.00013698,2]
[382940629,1756776643743,-480.0,0.00013698,2]
[382940630,1756776643753,-595.32,0.00013698,2]
[382940631,1756776643763,-480.0,0.00013698,2]
[382940632,1756776643773,-480.0,0.00013698,2]
[382940633,1756776643783,-437.40173968,0.00013698,2]
[382940634,1756776643794,-480.0,0.00013698,2]
[382940635,1756776643804,-669.02,0.00013698,2]
[382940636,1756776643815,-480.0,0.00013698,2]
[382940637,1756776643827,-480.0,0.00013698,2]
[382940638,1756776643837,-258.72497932,0.00013698,2]
[382940639,1756776643848,-480.0,0.00013698,2]
[382940640,1756776643859,-480.0,0.00013698,2]
[382940641,1756776643871,-480.0,0.00013698,2]
[382940642,1756776643882,-480.0,0.00013698,2]
[382940643,1756776643894,-480.0,0.00013698,2]
[382940644,1756776643904,-480.0,0.00013698,2]
[382940645,1756776643914,-292.21718025,0.00013698,2]
[382940649,1756776646455,-177.58543852,0.00013698,2]
[382940650,1756776646468,-480.0,0.00013698,2]
[382940651,1756776646479,-398.33755648,0.00013698,2]
[382940652,1756776646488,-480.0,0.00013698,2]
[382940653,1756776646498,-480.0,0.00013698,2]
[382940654,1756776646508,-480.0,0.00013698,2]
[382940655,1756776646518,-480.0,0.00013698,2]
[382940656,1756776646528,-480.0,0.00013698,2]
[382940657,1756776646537,-158.13550531,0.00013698,2]
[382940658,1756776646547,-480.0,0.00013698,2]
[382940659,1756776646556,-480.0,0.00013698,2]
[382940660,1756776646566,-480.0,0.00013698,2]
[382940661,1756776646575,-480.0,0.00013698,2]
[382940662,1756776646585,-483.08954368,0.00013698,2]
[382940663,1756776646595,-480.0,0.00013698,2]
[382940664,1756776646604,-480.0,0.00013698,2]
[382940665,1756776646613,-727.07,0.00013698,2]
[382940666,1756776646623,-480.0,0.00013698,2]
[382940667,1756776646633,-162.09165601,0.00013698,2]
[382940668,1756776656425,166.85,0.00024,120]
[382940670,1756776725933,381.15,0.00027397,120]
[382940678,1756777124900,850.4545504,0.00012778,2]
[382940680,1756777175001,5000.0,0.00030087,60]
[382940681,1756777202140,159.99477125,0.0001283,2]
[382940682,1756777262029,159.99477125,0.0001283,2]
[382940683,1756777322246,159.99477124,0.00012828,2]
[382940701,1756777721986,8428.24937626,0.00030087,60]
[382940739,1756777832416,-243.26904036,0.0001302,2]
[382940742,1756777832928,-710.0,0.00013421,2]
[382940743,1756777832938,-300.0,0.00013421,2]
[382940744,1756777832947,-21.72941455,0.00013422,2]
[382941207,1756777843552,-953.30858545,0.00013422,2]
[382941209,1756777843562,-2153.0,0.00013422,2]
[382941211,1756777843571,-632.0,0.00013422,2]
[382941213,1756777843580,-222.84993593,0.00013598,2]
[382941215,1756777843590,-192.40543572,0.00013598,2]
[382941217,1756777843599,-509.53681252,0.00013673,2]
[382941219,1756777843608,-500.41850444,0.00013673,2]
[382941221,1756777843618,-501.28954929,0.00013673,2]
[382941223,1756777843627,-500.0,0.00013673,2]
[382941225,1756777843637,-500.0,0.00013673,2]
[382941228,1756777843646,-500.0,0.00013673,2]
[382941229,1756777843656,-351.77240634,0.00013673,2]
[382941232,1756777843666,-500.0,0.00013673,2]
[382941233,1756777843676,-500.0,0.00013673,2]
[382941235,1756777843685,-500.0,0.00013673,2]
[382941237,1756777843694,-501.4254984,0.00013673,2]
[382941239,1756777843703,-500.0,0.00013673,2]
[382941241,1756777843713,-240.64564569,0.00013698,2]
[382941243,1756777843723,-480.0,0.00013698,2]
[382941245,1756777843732,-480.0,0.00013698,2]
[382941247,1756777843742,-480.0,0.00013698,2]
[382941249,1756777843751,-480.0,0.00013698,2]
[382941251,1756777843760,-482.84322526,0.00013698,2]
[382941253,1756777843769,-439.16068806,0.00013698,2]
[382941255,1756777843778,-482.54362758,0.00013698,2]
[382941257,1756777843788,-482.23150342,0.00013698,2]
[382941259,1756777843797,-481.70451186,0.00013698,2]
[382941261,1756777843806,-480.0,0.00013698,2]
[382941263,1756777843815,-480.0,0.00013698,2]
[382941265,1756777843825,-481.94494186,0.00013698,2]
[382941267,1756777843834,-480.0,0.00013698,2]
[382941269,1756777843843,-199.18093957,0.00013698,2]
[382941271,1756777843853,-480.0,0.00013698,2]
[382941273,1756777843863,-480.0,0.00013698,2]
[382941275,1756777843873,-480.0,0.00013698,2]
[382941277,1756777843882,-480.0,0.00013698,2]
[382941279,1756777843891,-480.0,0.00013698,2]
[382941281,1756777843901,-480.0,0.00013698,2]
[382941283,1756777843910,-480.0,0.00013698,2]
[382941285,1756777843920,-480.91885775,0.00013698,2]
[382941287,1756777843930,-329.14476565,0.00013698,2]
[382941289,1756777843939,-481.04724315,0.00013698,2]
[382941291,1756777843949,-480.0,0.00013698,2]
[382941293,1756777843958,-484.02693004,0.00013698,2]
[382941295,1756777843968,-193.02783298,0.00013698,2]
[382941297,1756777843978,-603.95323752,0.00013698,2]
[382941299,1756777843988,-771.3392206,0.00013698,2]
[382941301,1756777843998,-481.23675003,0.00013698,2]
[382941303,1756777844007,-480.0,0.00013698,2]
[382941305,1756777844017,-480.0,0.00013698,2]
[382941307,1756777844028,-489.04096272,0.00013698,2]
[382941309,1756777844038,-482.42674879,0.00013698,2]
[382941311,1756777844047,-480.0,0.00013698,2]
[382941313,1756777844056,-482.49930831,0.00013698,2]
[382941315,1756777844066,-282.00458949,0.00013698,2]
[382941317,1756777844075,-513.57548322,0.00013698,2]
[382941319,1756777844085,-482.44785475,0.00013698,2]
[382941321,1756777844097,-484.81570526,0.00013698,2]
[382941323,1756777844106,-481.38775884,0.00013698,2]
[382941325,1756777844115,-481.55438843,0.00013698,2]
[382941327,1756777844126,-297.79859498,0.00013698,2]
[382941329,1756777844135,-484.55240159,0.00013698,2]
[382941331,1756777844145,-481.80266673,0.00013698,2]
[382941333,1756777844154,-162.95173316,0.00013698,2]
[382941335,1756777844164,-480.0,0.00013698,2]
[382941337,1756777844173,-480.0,0.00013698,2]
[382941339,1756777844183,-480.0,0.00013698,2]
[382941341,1756777844194,-480.0,0.00013698,2]
[382941343,1756777844203,-495.59890647,0.00013698,2]
[382941345,1756777844213,-480.0,0.00013698,2]
[382941347,1756777844223,-482.02795593,0.00013698,2]
[382941349,1756777844232,-480.0,0.00013698,2]
[382941351,1756777844241,-480.0,0.00013698,2]
[382941372,1756777844430,-480.0,0.00013698,2]
[382941374,1756777844440,-198.83612234,0.00013698,2]
[382941375,1756777844450,-151.0,0.00013698,2]
[382941377,1756777844459,-151.0,0.00013698,2]
[382941379,1756777844471,-480.0,0.00013698,2]
[382941381,1756777844481,-200.46617878,0.00013698,2]
[382941383,1756777844490,-151.0,0.00013698,2]
[382941385,1756777844500,-295.13723842,0.00013698,2]
[382941387,1756777844510,-151.0,0.00013698,2]
[382941389,1756777844519,-198.35751113,0.00013698,2]
[382941391,1756777844529,-520.23667146,0.00013698,2]
[382941393,1756777844538,-480.0,0.00013698,2]
[382941395,1756777844548,-480.0,0.00013698,2]
[382941397,1756777844557,-513.32,0.00013698,2]
[382941399,1756777844567,-480.0,0.00013698,2]
[382941401,1756777844576,-480.0,0.00013698,2]
[382941403,1756777844586,-480.0,0.00013698,2]
[382941405,1756777844595,-480.0,0.00013698,2]
[382941407,1756777844605,-480.0,0.00013698,2]
[382941409,1756777844614,-480.0,0.00013698,2]
[382941411,1756777844624,-480.0,0.00013698,2]
[382941413,1756777844633,-623.33,0.00013698,2]
[382941415,1756777844644,-480.0,0.00013698,2]
[382941417,1756777844653,-480.0,0.00013698,2]
[382941419,1756777844662,-482.12101876,0.00013698,2]
[382941421,1756777844671,-499.25984493,0.00013698,2]
[382941423,1756777844680,-483.35298858,0.00013698,2]
[382941425,1756777844691,-480.0,0.00013698,2]
[382941427,1756777844701,-480.0,0.00013698,2]
[382941429,1756777844710,-480.0,0.00013698,2]
[382941431,1756777844719,-480.0,0.00013698,2]
[382941432,1756777844729,-480.0,0.00013698,2]
[382941434,1756777844739,-486.81048322,0.00013698,2]
[382941436,1756777844748,-480.0,0.00013698,2]
[382941438,1756777844758,-480.0,0.00013698,2]
[382941440,1756777844767,-480.0,0.00013698,2]
[382941442,1756777844776,-483.15721734,0.00013698,2]
[382941444,1756777844786,-480.0,0.00013698,2]
[382941446,1756777844795,-480.0,0.00013698,2]
[382941448,1756777844805,-482.2095685,0.00013698,2]
[382941450,1756777844814,-484.82236996,0.00013698,2]
[382941452,1756777844824,-480.0,0.00013698,2]
[382941454,1756777844833,-512.49,0.00013698,2]
[382941456,1756777844843,-482.45186039,0.00013698,2]
[382941458,1756777844852,-605.9185386,0.00013698,2]
[382941460,1756777844861,-483.07869859,0.00013698,2]
[382941462,1756777844871,-481.78988233,0.00013698,2]
[382941464,1756777844881,-481.17455813,0.00013698,2]
[382941466,1756777844890,-480.0,0.00013698,2]
[382941468,1756777844900,-480.0,0.00013698,2]
[382941470,1756777844910,-483.59148426,0.00013698,2]
[382941472,1756777844919,-480.0,0.00013698,2]
[382941474,1756777844929,-480.88901772,0.00013698,2]
[382941476,1756777844938,-481.74250954,0.00013698,2]
[382941478,1756777844947,-483.84491962,0.00013698,2]
[382941480,1756777844956,-482.6919603,0.00013698,2]
[382941482,1756777844965,-480.0,0.00013698,2]
[382941484,1756777844975,-72.69676937,0.00013698,2]
[382944107,1756778528252,250.0,0.00012972,2]
[382944121,1756778687750,432.12437994,0.00025,30]
[382944153,1756779032562,-1500.0,0.000132,2]
[382944201,1756779033075,-300.0,0.00013261,2]
[382944202,1756779033085,-157.46556763,0.00013261,2]
[382944249,1756779038512,-536.53443237,0.00013261,2]
[382944250,1756779038521,-3502.41218358,0.00013262,5]
[382944303,1756779043695,-6767.30396377,0.00013262,5]
[382944304,1756779043705,-223.88053344,0.00013262,2]
[382944305,1756779043715,-414.0,0.00013421,2]
[382944306,1756779043725,-978.076,0.00013422,2]
[382944307,1756779043735,-2153.0,0.00013422,2]
[382944308,1756779043744,-632.0,0.00013422,2]
[382944309,1756779043754,-1236.0,0.00013473,2]
[382944310,1756779043763,-192.4054357,0.00013598,2]
[382944311,1756779043773,-278.03472348,0.00013673,2]
[382944312,1756779043783,-223.12969809,0.00013673,2]
[382944313,1756779043792,-424.10870716,0.00013673,2]
[382944314,1756779043802,-500.0,0.00013673,2]
[382944315,1756779043811,-500.0,0.00013673,2]
[382944316,1756779043820,-501.43439383,0.00013673,2]
[382944317,1756779043830,-500.0,0.00013673,2]
[382944318,1756779043840,-500.63740246,0.00013673,2]
[382944319,1756779043850,-500.0,0.00013673,2]
[382944320,1756779043859,-500.0,0.00013673,2]
[382944321,1756779043869,-500.0,0.00013673,2]
[382944322,1756779043878,-500.0,0.00013673,2]
[382944323,1756779043888,-500.0,0.00013697,2]
[382944324,1756779043897,-500.0,0.00013697,2]
[382944325,1756779043907,-500.0,0.00013697,2]
[382944326,1756779043916,-500.0,0.00013697,2]
[382944327,1756779043925,-500.0,0.00013697,2]
[382944328,1756779043934,-500.0,0.00013697,2]
[382944329,1756779043943,-500.0,0.00013697,2]
[382944330,1756779043953,-500.0,0.00013697,2]
[382944331,1756779043962,-500.0,0.00013697,2]
[382944332,1756779043971,-500.0,0.00013697,2]
[382944333,1756779043980,-500.0,0.00013697,2]
[382944334,1756779043990,-500.0,0.00013697,2]
[382944335,1756779044000,-500.0,0.00013697,2]
[382944336,1756779044009,-500.0,0.00013697,2]
[382944337,1756779044018,-500.0,0.00013697,2]
[382944338,1756779044028,-500.0,0.00013697,2]
[382944339,1756779044037,-372.60024854,0.00013697,2]
[382944340,1756779044047,-500.0,0.00013697,2]
[382944341,1756779044056,-500.0,0.00013697,2]
[382944342,1756779044065,-500.0,0.00013697,2]
[382944343,1756779044074,-500.0,0.00013697,2]
[382944344,1756779044083,-243.68584746,0.00013697,2]
[382944347,1756779046730,-256.31415254,0.00013697,2]
[382944349,1756779046740,-500.0,0.00013697,2]
[382944351,1756779046750,-500.0,0.00013697,2]
[382944352,1756779046759,-500.0,0.00013697,2]
[382944353,1756779046769,-500.0,0.00013697,2]
[382944354,1756779046779,-304.68997938,0.00013698,2]
[382944356,1756779177439,300.0,0.00027397,120]
[382944360,1756779476573,832.672,0.00012938,2]
[382944361,1756779485293,300.0,0.00027397,120]
[382944362,1756779791789,393.25737573,0.00027397,120]
[382944380,1756780103296,168.0,0.00012968,2]
[382944383,1756780120408,1055.35664885,0.00030082,120]
[382944399,1756780231854,-168.0,0.00013231,2]
[382944400,1756780231865,-168.0,0.00013364,2]
[382944401,1756780231875,-300.0,0.00013377,2]
[382944402,1756780231884,-975.0,0.00013378,2]
[382944403,1756780231894,-632.0,0.00013378,2]
[382944404,1756780231904,-2153.0,0.00013378,2]
[382944405,1756780231914,-409.0,0.00013378,2]
[382944406,1756780231925,-423.672,0.00013378,2]
[382944407,1756780231936,-168.0,0.00013416,2]
[382944408,1756780231946,-160.3785675,0.00013516,2]
[382944409,1756780231956,-168.0,0.00013522,2]
[382944410,1756780231966,-1430.0,0.00013555,2]
[382944411,1756780231977,-249.17914913,0.00013598,2]
[382944412,1756780231987,-454.91224546,0.00013598,2]
[382944434,1756780245883,-785.26843008,0.00013461,2]
[382944480,1756780344931,189.475763,0.000245,30]
[382944508,1756780850588,223.88053344,0.00012967,2]
[382944514,1756781068852,40426.57015814,0.00012,2]
[382944515,1756781071243,-275.49806485,0.00012,2]
[382944517,1756781075455,-8688.25517598,0.00012,2]
[382944518,1756781075621,-10000.01,0.00012,2]
[382944519,1756781075719,-10000.01,0.00012,2]
[382944520,1756781075879,-10000.01,0.00012,2]
[382944521,1756781075975,-10000.01,0.00012,2]
[382944522,1756781076120,-3307.08549989,0.00012,2]
[382944523,1756781076146,-3385.83900022,0.00012,2]
[382944524,1756781085263,-500.0,0.00012999,2]
[382944525,1756781085291,-500.0,0.00012999,2]
[382944526,1756781085324,-500.0,0.00012999,2]
[382944527,1756781085356,-500.0,0.00012999,2]
[382944528,1756781085385,-500.0,0.00012999,2]
[382944529,1756781085413,-500.0,0.00012999,2]
[382944530,1756781085442,-500.0,0.00012999,2]
[382944531,1756781085469,-500.0,0.00012999,2]
[382944532,1756781085497,-341.91751126,0.00012999,2]
[382944533,1756781085526,-500.0,0.00012999,2]
[382944534,1756781085651,-500.0,0.00012999,2]
[382944535,1756781085684,-500.0,0.00012999,2]
[382944536,1756781085714,-500.0,0.00012999,2]
[382944537,1756781085743,-500.0,0.00012999,2]
[382944538,1756781085773,-500.0,0.00012999,2]
[382944539,1756781086025,-500.0,0.00012999,2]
[382944540,1756781086055,-500.0,0.00012999,2]
[382944541,1756781086083,-500.0,0.00012999,2]
[382944542,1756781086112,-500.0,0.00012999,2]
[382944543,1756781086141,-500.0,0.00012999,2]
[382944544,1756781086262,-500.0,0.00012999,2]
[382944545,1756781086290,-500.0,0.00012999,2]
[382944546,1756781102821,914.0,0.0001297,2]
[382944548,1756781111872,500.0,0.00012999,2]
[382944549,1756781111933,500.0,0.00012999,2]
[382944550,1756781111968,332.97845209,0.00012999,2]
[382944551,1756781112011,500.0,0.00012999,2]
[382944552,1756781112047,500.0,0.00012999,2]
[382944553,1756781112080,307.57007358,0.00012999,2]
[382944554,1756781112132,172.26295769,0.00012999,2]
[382944555,1756781112164,500.0,0.00012999,2]
[382944556,1756781112215,500.0,0.00012999,2]
[382944557,1756781112262,162.9946712,0.00012999,2]
[382944558,1756781123102,500.0,0.00012999,2]
[382944559,1756781123131,500.0,0.00012999,2]
[382944560,1756781123164,500.0,0.00012999,2]
[382944561,1756781123267,306.11730592,0.00012999,2]
[382944562,1756781123428,500.0,0.00012999,2]
[382944563,1756781123459,500.0,0.00012999,2]
[382944564,1756781123492,500.0,0.00012999,2]
[382944565,1756781123567,500.0,0.00012999,2]
[382944566,1756781123784,500.0,0.00012999,2]
[382944567,1756781123819,500.0,0.00012999,2]
[382944568,1756781124019,304.08653952,0.00012999,2]
[382944569,1756781124041,195.91346048,0.00012999,2]
[382944570,1756781124152,500.0,0.00012999,2]
[382944571,1756781124418,500.0,0.00012999,2]
[382944572,1756781124446,500.0,0.00012999,2]
[382944573,1756781124502,223.59283733,0.00012999,2]
[382944574,1756781124827,500.0,0.00012999,2]
[382944575,1756781124858,500.0,0.00012999,2]
[382944576,1756781125203,288.73603997,0.00012999,2]
[382944577,1756781125237,400.48928204,0.00012999,2]
[382944578,1756781125638,914.0,0.0001297,2]
[382944582,1756781148539,500.0,0.00012999,2]
[382944583,1756781148569,500.0,0.00012999,2]
[382944584,1756781148608,890.61935542,0.0001297,2]
[382944585,1756781148640,500.0,0.00012999,2]
[382944586,1756781148674,500.0,0.00012999,2]
[382944587,1756781148706,500.0,0.00012999,2]
[382944588,1756781148742,500.0,0.00012999,2]
[382944589,1756781148771,500.0,0.00012999,2]
[382944590,1756781148802,500.0,0.00012999,2]
[382944591,1756781148837,500.0,0.00012999,2]
[382944592,1756781148866,86.65902476,0.00012999,2]
[382944593,1756781148890,413.34097524,0.00012999,2]
[382944594,1756781148920,500.0,0.00012999,2]
[382944595,1756781148960,500.0,0.00012999,2]
[382944596,1756781148996,500.0,0.00012999,2]
[382944597,1756781149026,500.0,0.00012999,2]
[382944598,1756781149061,500.0,0.00012999,2]
[382944599,1756781149092,500.0,0.00012999,2]
[382944600,1756781149120,500.0,0.00012999,2]
[382944601,1756781149154,269.97642215,0.00012999,2]
[382944602,1756781149195,500.0,0.00012999,2]
[382944603,1756781149230,500.0,0.00012999,2]
[382944604,1756781149260,500.0,0.00012999,2]
[382944605,1756781149316,500.0,0.00012999,2]
[382944606,1756781149377,500.0,0.00012999,2]